bitfinex/quotes_ETHUSD_20250415
["timestamp","ask_amount","ask_price","bid_price","bid_amount"]
[1744702828094,0.774,1644.9,1644.5,6.08071]
[1744702828095,6.85346,1644.9,1644.5,6.08071]
[1744702828398,6.0799,1644.8,1644.5,6.08071]
[1744702829107,12.93307,1644.9,1644.6,6.08049]
[1744702829803,12.93309,1644.9,1644.6,6.08047]
[1744702830417,0.774,1644.9,1644.7,6.0799]
[1744702830619,5.219,1645.0,1644.7,6.0799]
[1744702830917,5.219,1645.0,1644.7,12.15989]
[1744702830918,11.29803,1645.0,1644.7,12.15989]
[1744702831210,11.29803,1645.0,1644.7,6.0799]
[1744702831587,11.29803,1645.0,1644.7,12.15993]
[1744702832375,5.219,1645.0,1644.6,6.08044]
[1744702832580,5.219,1645.0,1644.5,9.50596714]
[1744702832581,12.15941,1644.9,1644.5,15.58675714]
[1744702833227,12.15941,1644.9,1644.5,12.62867442]
[1744702833443,12.91757,1644.8,1644.5,6.54788442]
[1744702834324,6.08027,1644.7,1644.4,6.08122]
[1744702834623,0.7893,1644.5,1644.3,6.08157]
[1744702835840,0.7893,1644.5,1644.2,6.0819]
[1744702835841,6.87019,1644.5,1644.2,12.16374]
[1744702837196,0.7893,1644.5,1644.3,12.1632]
[1744702838137,0.7893,1644.5,1644.3,12.16308]
[1744702838938,0.7893,1644.5,1644.3,6.08148]
[1744702841534,0.7893,1644.5,1644.3,12.163]
[1744702841838,0.7893,1644.5,1644.3,6.08148]
[1744702843738,0.7893,1644.5,1644.3,12.16297]
[1744702844101,0.7893,1644.5,1644.3,6.08148]
[1744702844736,0.7893,1644.5,1644.3,12.16297]
[1744702845376,0.7893,1644.5,1644.4,6.08124]
[1744702845677,6.038,1644.6,1644.4,6.08124]
[1744702846970,12.11852,1644.6,1644.3,12.16297]
[1744702847363,12.11852,1644.6,1644.3,6.08148]
[1744702847556,12.11852,1644.6,1644.3,12.16297]
[1744702847962,6.038,1644.6,1644.1,3.75128272]
[1744702852876,6.038,1644.6,1644.1,3.7932]
[1744702854474,0.7927,1644.3,1643.4,0.7582]
[1744702854676,0.7927,1644.3,1643.7,0.7582]
[1744702854981,0.7927,1644.4,1644.0,0.7582]
[1744702855975,6.0514,1644.6,1644.0,1.21022368]
[1744702857155,6.0514,1644.6,1644.0,0.7582]
[1744702858399,5.9514,1644.6,1644.0,0.7582]
[1744702859979,5.9514,1644.6,1644.1,0.06081205]
[1744702860398,5.9514,1644.6,1644.0,0.7582]
[1744702863905,5.9514,1644.6,1644.1,0.06081143]
[1744702864202,5.9514,1644.6,1644.0,0.7582]
[1744702864794,5.9514,1644.6,1644.1,0.06081146]
[1744702865410,5.9514,1644.6,1644.0,0.7582]
[1744702867005,5.9514,1644.6,1644.1,0.06081151]
[1744702867620,5.9514,1644.6,1644.0,0.7582]
[1744702867975,5.9514,1644.6,1644.0,0.7082]
[1744702869978,5.9514,1644.6,1644.1,0.06081161]
[1744702870187,5.9514,1644.6,1644.0,0.7082]
[1744702876045,0.8325,1644.5,1643.9,3.7432]
[1744702877812,0.8325,1644.5,1643.9,0.7432]
[1744702879750,0.8325,1644.5,1644.0,0.06081294]
[1744702879957,0.8325,1644.5,1644.2,1.30176599]
[1744702880160,0.8325,1644.5,1644.2,2.04496599]
[1744702880663,0.8325,1644.5,1644.0,1.30176599]
[1744702880863,0.8325,1644.5,1643.8,2.04496599]
[1744702881075,0.7689,1644.4,1643.8,0.7432]
[1744702881249,0.7689,1644.4,1643.7,0.7432]
[1744702882061,0.7689,1644.4,1643.8,0.0608204]
[1744702882633,0.7689,1644.4,1643.7,0.7432]
[1744702882978,0.7689,1644.4,1643.8,0.06082041]
[1744702883275,0.7689,1644.4,1643.7,0.7432]
[1744702884072,0.7689,1644.4,1643.8,0.06082042]
[1744702884275,0.7689,1644.4,1643.7,0.7432]
[1744702884973,0.7689,1644.4,1643.6,5.961984]
[1744702888682,0.7689,1644.4,1643.8,2.961984]
[1744702888908,0.7689,1644.4,1643.9,0.06081472]
[1744702889174,0.7689,1644.4,1643.8,3.705184]
[1744702890284,0.7689,1644.4,1643.8,2.961984]
[1744702891576,0.7689,1644.4,1643.9,0.06081464]
[1744702891783,0.7689,1644.4,1643.9,3.7432]
[1744702892177,0.7689,1644.4,1643.9,3.0]
[1744702892684,0.7689,1644.4,1643.9,3.0608132]
[1744702892841,0.7689,1644.4,1643.9,3.0]
[1744702894804,0.7689,1644.4,1644.0,0.06081324]
[1744702895177,0.7689,1644.4,1643.9,3.7432]
[1744702896305,0.7689,1644.4,1643.9,3.0]
[1744702897516,0.7689,1644.4,1644.0,0.06081295]
[1744702897668,0.7689,1644.4,1643.9,3.7432]
[1744702901003,0.7689,1644.4,1643.9,3.0]
[1744702903225,0.7689,1644.4,1644.0,1.30154084]
[1744702909011,0.7689,1644.4,1644.1,0.06081259]
[1744702909206,0.7689,1644.4,1644.0,1.30154084]
[1744702920332,0.7689,1644.4,1643.9,3.0]
[1744702921543,0.7689,1644.4,1643.8,4.30154084]
[1744702922144,0.7689,1644.4,1644.0,1.30154084]
[1744702922323,0.7689,1644.4,1644.2,1.30154084]
[1744702923558,0.7689,1644.4,1644.0,5.04474084]
[1744702923559,0.7689,1644.4,1644.3,1.30154084]
[1744702923858,0.7628,1644.8,1644.2,1.30154084]
[1744702924527,0.7628,1644.8,1644.1,1.85154084]
[1744702925427,0.7628,1644.8,1644.1,1.30154084]
[1744702925633,0.7836,1644.7,1644.1,1.30154084]
[1744702925830,0.7836,1644.7,1644.2,1.30154084]
[1744702926031,0.7836,1644.7,1644.1,3.0]
[1744702927124,0.7836,1644.7,1644.0,1.30154084]
[1744702929359,0.7836,1644.7,1644.2,1.30154084]
[1744702931524,0.7836,1644.7,1644.0,1.30154084]
[1744702936285,5.219,1644.7,1644.0,1.30154084]
[1744702936435,0.7894,1644.6,1644.0,1.30154084]
[1744702938980,0.7894,1644.6,1644.2,1.30154084]
[1744702940488,0.7894,1644.6,1644.1,1.30154084]
[1744702947887,0.7894,1644.6,1644.0,5.04474084]
[1744702948089,0.7894,1644.6,1644.3,1.30154084]
[1744702948990,0.7894,1644.6,1644.1,4.30154084]
[1744702953061,0.7894,1644.6,1644.1,3.0]
[1744702953495,0.7894,1644.6,1644.2,0.06080787]
[1744702953870,0.7894,1644.6,1644.1,3.0]
[1744702957307,0.7894,1644.6,1643.9,5.219]
[1744702958300,0.7894,1644.6,1644.0,0.06081352]
[1744702958505,0.7894,1644.6,1643.9,5.219]
[1744702959601,0.7894,1644.6,1644.0,1.2932]
[1744702962842,0.7894,1644.6,1644.1,3.0]
[1744702969850,0.7894,1644.6,1644.0,6.5102]
[1744702970151,0.7894,1644.6,1644.1,3.0]
[1744702973964,0.7894,1644.6,1644.2,0.55]
[1744702974152,0.7894,1644.6,1644.1,3.0]
[1744702977565,0.7894,1644.6,1644.2,0.06080823]
[1744702978057,0.7894,1644.6,1643.8,1.2932]
[1744702978227,0.7894,1644.6,1643.9,4.0]
[1744702978627,0.7894,1644.6,1644.0,0.06081712]
[1744702978938,0.7894,1644.6,1643.9,4.0]
[1744702979743,0.7894,1644.6,1643.6,3.55]
[1744702980070,0.7894,1644.6,1643.7,4.0]
[1744702980767,0.7894,1644.6,1643.8,0.06081713]
[1744702981373,0.7894,1644.6,1643.7,4.0]
[1744702983075,0.7894,1644.6,1643.8,1.2932]
[1744702983282,0.7894,1644.6,1643.8,0.55]
[1744702983480,0.7894,1644.6,1643.9,3.0]
[1744702986686,0.7894,1644.6,1644.0,0.06081821]
[1744702987499,0.7894,1644.6,1643.9,3.0]
[1744702987649,0.7894,1644.6,1644.0,0.06081819]
[1744702987985,0.7894,1644.6,1643.9,3.0]
[1744702989087,0.7894,1644.6,1644.0,0.0608182]
[1744702992507,0.7894,1644.6,1643.9,3.0]
[1744702993499,0.7894,1644.6,1644.0,0.06081819]
[1744702996191,0.7894,1644.6,1643.9,0.7432]
[1744702997579,0.7894,1644.6,1644.0,0.06080868]
[1744702997780,0.7894,1644.6,1643.9,0.7432]
[1744702998823,0.7894,1644.6,1644.0,0.06080741]
[1744702999307,0.7894,1644.6,1643.9,0.7432]
[1744703000316,0.7894,1644.6,1644.0,0.06080874]
[1744703001122,0.7894,1644.6,1643.9,0.7432]
[1744703002000,0.7894,1644.6,1644.0,0.06080879]
[1744703002525,0.7894,1644.6,1643.9,0.7432]
[1744703002828,0.7894,1644.6,1644.0,0.06080881]
[1744703003988,0.7894,1644.6,1643.9,0.7432]
[1744703004487,0.7894,1644.6,1644.1,0.55]
[1744703005422,0.7894,1644.6,1644.0,0.55]
[1744703005621,0.7894,1644.6,1644.0,3.0]
[1744703006514,0.7894,1644.6,1644.1,0.0608163]
[1744703008029,0.7894,1644.6,1643.8,0.0608157]
[1744703008918,0.7894,1644.6,1643.7,0.7432]
[1744703009115,0.7894,1644.6,1643.9,3.06081632]
[1744703009310,0.7894,1644.6,1643.9,3.0]
[1744703011528,0.7894,1644.6,1644.0,0.06081632]
[1744703012132,0.7894,1644.6,1643.9,3.0]
[1744703012426,0.7894,1644.6,1644.0,0.06081632]
[1744703014916,0.7894,1644.6,1643.9,3.0]
[1744703023572,0.7894,1644.6,1644.0,0.06081636]
[1744703023972,0.7894,1644.6,1643.9,3.0]
[1744703025350,0.7894,1644.6,1644.0,0.06081638]
[1744703025568,0.7894,1644.6,1643.9,3.0]
[1744703031996,0.7894,1644.6,1644.0,0.06081866]
[1744703033710,0.7894,1644.6,1643.9,3.0]
[1744703033916,0.7894,1644.6,1644.0,0.06081498]
[1744703034391,0.7894,1644.6,1643.9,3.0]
[1744703034904,0.7894,1644.6,1644.1,1.2932]
[1744703035100,0.7894,1644.6,1644.1,0.55]
[1744703053360,0.7894,1644.6,1644.3,3.0]
[1744703067973,0.7894,1644.6,1643.9,0.55]
[1744703068169,0.7894,1644.6,1644.1,3.0]
[1744703068338,0.7894,1644.6,1644.1,3.7432]
[1744703068534,0.7894,1644.6,1644.2,0.55]
[1744703072289,0.7894,1644.6,1644.3,0.06080093]
[1744703074164,0.7894,1644.6,1644.1,3.0]
[1744703086779,0.7894,1644.6,1644.2,0.06081011]
[1744703086979,0.7894,1644.6,1644.1,3.0]
[1744703093982,0.7894,1644.6,1643.9,0.55]
[1744703100426,0.7894,1644.6,1644.1,3.0]
[1744703100838,0.7894,1644.6,1644.2,0.06081003]
[1744703101136,0.7894,1644.6,1644.1,3.7432]
[1744703101339,0.7894,1644.6,1644.2,0.55]
[1744703102706,0.7894,1644.6,1644.1,3.7432]
[1744703102906,0.7894,1644.6,1644.2,4.0]
[1744703103106,0.7894,1644.6,1644.1,0.7432]
[1744703103333,0.7894,1644.6,1644.0,0.55]
[1744703103502,0.7894,1644.6,1643.5,0.7432]
[1744703103705,0.7894,1644.6,1643.7,0.7432]
[1744703103906,0.7894,1644.6,1643.8,0.0608129]
[1744703104469,0.7894,1644.6,1643.9,0.55]
[1744703104732,0.7894,1644.6,1644.0,0.06080891]
[1744703104899,0.7894,1644.6,1643.9,0.55]
[1744703108332,0.7894,1644.6,1644.0,0.06081002]
[1744703109005,0.7894,1644.6,1643.9,0.55]
[1744703109439,0.7894,1644.6,1644.1,3.0]
[1744703110535,0.7894,1644.6,1644.2,0.06081003]
[1744703110943,0.7894,1644.6,1644.1,3.0]
[1744703111435,0.7894,1644.6,1644.2,0.06081002]
[1744703113537,0.7894,1644.6,1644.2,0.55]
[1744703115546,0.7894,1644.6,1644.2,1.2932]
[1744703115928,0.7894,1644.6,1644.2,0.55]
[1744703119346,0.7894,1644.6,1644.1,3.0]
[1744703119512,0.7894,1644.6,1644.2,4.0]
[1744703120812,0.7894,1644.6,1644.1,0.55]
[1744703121012,0.7894,1644.6,1644.0,0.55]
[1744703121213,0.7894,1644.6,1644.2,3.0]
[1744703125828,0.7894,1644.6,1644.1,4.0]
[1744703126553,0.7894,1644.6,1644.0,0.55]
[1744703126849,0.7894,1644.6,1643.9,0.55]
[1744703127047,0.7894,1644.6,1644.0,4.0]
[1744703130227,0.7894,1644.6,1643.7,0.55]
[1744703130426,0.7894,1644.6,1643.9,3.55]
[1744703134857,0.7894,1644.6,1644.0,0.06081258]
[1744703137659,0.7894,1644.6,1643.9,3.55]
[1744703137963,0.7894,1644.6,1644.0,4.06081257]
[1744703143731,0.7894,1644.6,1644.0,4.0]
[1744703144512,0.7894,1644.6,1644.1,0.06081066]
[1744703149135,0.7894,1644.6,1644.0,4.0]
[1744703149751,0.7894,1644.6,1643.5,3.0]
[1744703149951,0.7894,1644.6,1643.8,3.0]
[1744703153145,0.7894,1644.6,1643.8,3.06082607]
[1744703153345,0.7702,1644.4,1643.3,3.82738348]
[1744703153573,0.7702,1644.4,1643.5,3.0]
[1744703153783,0.7702,1644.4,1643.6,0.06083013]
[1744703154150,0.7702,1644.4,1643.5,3.0]
[1744703160292,0.7702,1644.4,1643.6,0.06083003]
[1744703160987,0.7702,1644.4,1643.5,3.0]
[1744703161195,0.7702,1644.4,1643.6,0.06083002]
[1744703162196,0.7702,1644.4,1643.5,3.0]
[1744703162711,0.7702,1644.4,1643.6,0.06083]
[1744703163566,0.7702,1644.4,1643.6,0.55]
[1744703164470,0.7702,1644.4,1643.6,0.06082333]
[1744703164677,0.7702,1644.4,1643.6,0.06082593]
[1744703164985,0.7702,1644.4,1643.7,0.55]
[1744703165193,0.7702,1644.4,1643.8,0.7432]
[1744703166506,0.7702,1644.4,1643.6,0.55]
[1744703166804,0.7702,1644.4,1643.8,3.55]
[1744703175478,0.7702,1644.4,1643.9,0.06081609]
[1744703176009,0.7702,1644.4,1644.0,0.55]
[1744703178924,0.7702,1644.4,1643.8,3.0]
[1744703179100,0.7702,1644.4,1643.9,4.0]
[1744703179625,0.7702,1644.4,1643.7,0.55]
[1744703180596,0.7702,1644.4,1643.9,3.0]
[1744703181420,0.7702,1644.4,1644.0,0.55]
[1744703182797,0.7702,1644.4,1643.9,3.0]
[1744703183231,0.7702,1644.4,1644.0,0.06081288]
[1744703184501,0.7702,1644.4,1644.0,0.55]
[1744703187034,0.7702,1644.4,1643.9,3.0]
[1744703187731,0.7702,1644.4,1643.9,3.06081623]
[1744703189027,0.7702,1644.4,1643.9,3.0]
[1744703189235,0.7702,1644.4,1643.9,3.06082146]
[1744703190047,0.7702,1644.4,1643.9,0.06082146]
[1744703190230,0.7702,1644.4,1643.6,0.06082145]
[1744703190430,0.7702,1644.4,1643.5,0.55]
[1744703190431,0.7702,1644.4,1643.8,3.0]
[1744703190636,0.7702,1644.4,1643.9,0.06082145]
[1744703191136,0.7702,1644.4,1643.8,3.0]
[1744703191608,0.7702,1644.4,1643.9,0.06082145]
[1744703192531,0.7702,1644.4,1643.8,3.0]
[1744703195905,0.7702,1644.4,1643.5,1.2932]
[1744703196142,0.7702,1644.4,1643.7,3.0]
[1744703196341,0.7702,1644.4,1643.8,0.06082146]
[1744703197101,0.7702,1644.4,1643.7,3.0]
[1744703203052,0.7702,1644.4,1643.8,0.06082148]
[1744703203356,0.7702,1644.4,1643.7,3.0]
[1744703203924,0.7702,1644.4,1643.8,0.06082148]
[1744703204523,0.7702,1644.4,1643.7,3.0]
[1744703209927,0.7702,1644.4,1643.8,0.06082151]
[1744703210227,0.7702,1644.4,1643.7,3.0]
[1744703217272,0.7702,1644.4,1643.8,0.06082147]
[1744703218073,0.7702,1644.4,1643.7,3.0]
[1744703220260,0.7702,1644.4,1643.8,0.06082141]
[1744703220552,0.7702,1644.4,1643.7,3.0]
[1744703226275,0.7702,1644.4,1643.5,1.2932]
[1744703226478,0.7702,1644.4,1643.7,3.55]
[1744703228675,0.7702,1644.4,1643.9,0.55]
[1744703234085,0.7702,1644.4,1644.0,0.6081]
[1744703234386,0.7702,1644.4,1643.9,0.55]
[1744703237961,0.7702,1644.4,1644.0,0.06081156]
[1744703239195,0.7702,1644.4,1643.9,0.55]
[1744703244179,0.7702,1644.4,1643.7,3.0]
[1744703247021,0.7702,1644.4,1643.8,0.06082503]
[1744703250505,0.7702,1644.4,1643.7,3.0]
[1744703250697,0.7702,1644.4,1643.8,0.0608249]
[1744703252811,0.7702,1644.4,1643.7,3.0]
[1744703254178,0.7702,1644.4,1643.3,3.55]
[1744703254378,0.7702,1644.4,1643.4,0.55]
[1744703254987,0.7702,1644.4,1643.6,3.0]
[1744703255511,0.7702,1644.4,1643.7,0.06082664]
[1744703257913,0.7702,1644.4,1643.6,3.0]
[1744703262661,0.7702,1644.4,1643.7,0.06082495]
[1744703262957,0.7702,1644.4,1643.6,3.0]
[1744703264538,0.7702,1644.4,1643.3,0.55]
[1744703264720,0.7702,1644.4,1643.5,3.55]
[1744703265540,0.7702,1644.4,1643.6,0.06082559]
[1744703268350,0.7702,1644.4,1643.6,0.7432]
[1744703268736,0.7702,1644.4,1643.7,0.06082109]
[1744703269135,0.7702,1644.4,1643.6,0.7432]
[1744703269815,0.7702,1644.4,1643.5,3.55]
[1744703270018,0.7702,1644.4,1643.5,4.2932]
[1744703270219,0.7702,1644.4,1643.5,3.55]
[1744703271520,0.7702,1644.4,1643.5,3.0]
[1744703272755,0.7702,1644.4,1643.6,0.06082659]
[1744703273562,0.7702,1644.4,1643.5,3.0]
[1744703280330,0.7702,1644.4,1643.6,0.06082753]
[1744703280764,0.7702,1644.4,1643.7,0.55]
[1744703281346,0.7702,1644.4,1643.7,0.7432]
[1744703282058,0.7702,1644.4,1643.9,3.55]
[1744703293488,0.7702,1644.4,1644.0,0.06080847]
[1744703293648,0.7702,1644.4,1643.9,3.55]
[1744703294647,0.7702,1644.4,1644.1,3.0]
[1744703298289,0.7702,1644.4,1644.2,0.06080707]
[1744703299779,0.7702,1644.4,1644.1,3.0]
[1744703300889,0.7702,1644.4,1643.2,15.8543331]
[1744703301053,0.7702,1644.4,1643.5,3.7432]
[1744703301253,0.7702,1644.4,1643.6,1.2932]
[1744703302090,0.7702,1644.4,1643.9,3.55]
[1744703303190,0.7702,1644.4,1643.7,0.55]
[1744703303994,0.7702,1644.4,1643.9,0.55]
[1744703304191,0.7702,1644.4,1644.0,0.06080919]
[1744703304561,0.7702,1644.4,1643.9,0.55]
[1744703305088,0.7702,1644.4,1644.0,0.6081]
[1744703305294,0.7702,1644.4,1643.9,0.55]
[1744703307864,0.7702,1644.4,1643.7,0.55]
[1744703308063,0.7702,1644.4,1643.9,3.55]
[1744703309401,0.7702,1644.4,1643.9,3.0]
[1744703309599,0.7702,1644.4,1643.8,4.0]
[1744703309803,0.7702,1644.4,1643.9,3.06082274]
[1744703311403,0.7702,1644.4,1643.9,0.06082274]
[1744703311591,0.7702,1644.4,1643.5,0.06082256]
[1744703311772,0.7702,1644.4,1643.7,3.0]
[1744703312072,0.7702,1644.4,1643.8,0.0608226]
[1744703313015,0.7702,1644.4,1643.8,0.55]
[1744703321887,0.7702,1644.4,1643.7,3.0]
[1744703322298,0.7702,1644.4,1643.8,0.06081904]
[1744703322522,0.7702,1644.4,1643.7,3.0]
[1744703326168,0.7702,1644.4,1643.6,4.0]
[1744703326450,0.7702,1644.4,1643.7,3.0]
[1744703326637,0.7702,1644.4,1643.3,3.55]
[1744703326843,0.7702,1644.4,1643.5,3.0]
[1744703327348,0.7977,1644.2,1643.4,4.0]
[1744703327536,0.7977,1644.2,1643.5,0.06082655]
[1744703328354,0.7977,1644.2,1643.2,0.06083684]
[1744703328648,0.7977,1644.2,1643.3,3.55]
[1744703331219,0.7977,1644.2,1643.3,3.0]
[1744703333672,0.7977,1644.2,1643.1,0.05]
[1744703334778,0.7977,1644.2,1643.2,0.06083616]
[1744703338976,0.7977,1644.2,1643.3,0.55]
[1744703340780,0.7977,1644.2,1643.2,0.55]
[1744703341446,0.7977,1644.2,1643.3,0.06083468]
[1744703341641,0.7977,1644.2,1643.2,0.55]
[1744703342379,0.7977,1644.2,1643.3,0.0608347]
[1744703342746,0.7977,1644.2,1643.1,0.05]
[1744703353189,0.55,1644.1,1643.1,0.05]
[1744703353498,0.811,1644.0,1643.1,0.05]
[1744703363815,0.55,1643.9,1643.1,0.05]
[1744703364029,0.8193,1643.8,1643.1,0.05]
[1744703368720,0.8193,1643.8,1643.2,0.06084757]
[1744703368929,0.8193,1643.8,1643.1,0.05]
[1744703378156,0.8093,1644.3,1643.2,1.2932]
[1744703378456,0.8093,1644.3,1643.3,3.7432]
[1744703379352,0.8093,1644.3,1643.5,3.55]
[1744703380617,0.8093,1644.3,1643.5,3.0]
[1744703380837,0.8093,1644.3,1643.2,0.55]
[1744703381034,0.8093,1644.3,1643.4,0.55]
[1744703381449,0.8093,1644.3,1643.3,4.0]
[1744703381661,0.8093,1644.3,1643.4,3.0]
[1744703383456,0.8093,1644.3,1643.1,0.6]
[1744703383668,0.8093,1644.3,1643.2,4.0]
[1744703384160,0.8093,1644.3,1643.3,0.06083692]
[1744703384731,0.8093,1644.3,1643.2,4.0]
[1744703384962,0.8093,1644.3,1643.2,0.55]
[1744703385353,0.8093,1644.3,1643.1,0.05]
[1744703387274,0.8093,1644.3,1643.2,0.06083654]
[1744703389171,0.8093,1644.3,1643.2,0.55]
[1744703390976,0.8093,1644.3,1643.1,0.05]
[1744703393151,0.7835,1644.1,1643.1,3.05]
[1744703394154,0.7835,1644.1,1643.1,0.05]
[1744703394678,0.7835,1644.1,1643.2,0.06083771]
[1744703395486,5.988,1644.0,1643.2,0.06083771]
[1744703395657,0.799,1643.8,1643.2,0.06083771]
[1744703396182,0.799,1643.8,1643.1,3.05]
[1744703400284,0.799,1643.8,1643.1,8.239]
[1744703401085,0.799,1643.8,1643.2,0.06083766]
[1744703402793,0.799,1643.8,1643.2,0.55]
[1744703404687,0.799,1643.8,1643.1,8.239]
[1744703405196,0.799,1643.8,1643.2,0.06083693]
[1744703406591,0.799,1643.8,1643.2,0.55]
[1744703413217,0.799,1643.8,1643.1,8.239]
[1744703418226,0.799,1643.8,1643.1,8.239]
[1744703420824,0.799,1643.8,1643.2,3.61083659]
[1744703421004,0.799,1643.8,1643.2,3.55]
[1744703422234,0.799,1643.8,1643.2,3.0]
[1744703424898,0.799,1643.8,1643.1,0.05]
[1744703425103,0.799,1643.8,1643.2,0.06083667]
[1744703427634,0.799,1643.8,1643.1,0.05]
[1744703428512,0.799,1643.8,1643.2,0.61083669]
[1744703428837,0.799,1643.8,1643.2,0.55]
[1744703431648,0.799,1643.8,1643.1,0.05]
[1744703431815,0.799,1643.8,1643.2,0.06083673]
[1744703432017,0.799,1643.8,1643.1,0.05]
[1744703433925,0.799,1643.8,1643.2,0.06083674]
[1744703434316,0.799,1643.8,1643.1,0.05]
[1744703459198,0.7957,1643.8,1643.2,0.7432]
[1744703459403,0.7957,1643.8,1643.1,0.7932]
[1744703459598,0.7957,1643.8,1643.3,3.0]
[1744703461072,0.7957,1643.8,1643.1,0.05]
[1744703463306,0.7957,1643.8,1643.2,0.06083955]
[1744703465311,0.7957,1643.8,1643.3,0.55]
[1744703465715,0.7957,1643.8,1643.1,0.05]
[1744703467979,0.7957,1643.8,1643.2,0.06083738]
[1744703468210,0.7957,1643.8,1643.3,0.55]
[1744703471116,0.7957,1643.8,1643.1,0.7932]
[1744703471408,0.7957,1643.8,1643.1,0.05]
[1744703472485,0.7957,1643.8,1643.2,0.06084082]
[1744703478501,0.7957,1643.8,1643.1,0.05]
[1744703480102,0.7957,1643.8,1643.2,0.06084469]
[1744703481138,0.7957,1643.8,1643.1,0.05]
[1744703485238,0.7957,1643.8,1643.2,0.06084457]
[1744703485911,0.7957,1643.8,1643.1,0.05]
[1744703486413,0.7957,1643.8,1643.2,0.06084459]
[1744703488735,0.7957,1643.8,1643.1,0.05]
[1744703492616,0.7957,1643.8,1643.2,0.06084465]
[1744703493449,0.7957,1643.8,1643.1,0.05]
[1744703512774,0.7957,1643.8,1643.1,0.7932]
[1744703513069,0.7957,1643.8,1643.2,0.06083851]
[1744703516474,0.7957,1643.8,1643.2,0.06083863]
[1744703516687,0.7957,1643.8,1643.2,0.06083869]
[1744703516975,0.7957,1643.8,1643.1,0.7932]
[1744703521378,0.7957,1643.8,1643.2,3.0]
[1744703522579,0.7957,1643.8,1643.1,0.7932]
[1744703523699,0.7957,1643.8,1643.2,3.0]
[1744703525460,0.7957,1643.8,1643.3,0.06083896]
[1744703525871,0.7957,1643.8,1643.2,3.0]
[1744703527788,0.7957,1643.8,1643.4,0.55]
[1744703527947,0.7957,1643.8,1643.6,0.55]
[1744703528277,0.7957,1643.8,1643.6,3.55]
[1744703529062,0.8009,1644.2,1643.6,3.55]
[1744703530882,0.8009,1644.2,1643.7,0.06082349]
[1744703531065,0.8009,1644.2,1643.6,3.55]
[1744703534151,0.8009,1644.2,1643.7,0.06082357]
[1744703535491,0.8009,1644.2,1643.6,3.55]
[1744703537490,0.8009,1644.2,1643.7,0.0608236]
[1744703537961,0.8009,1644.2,1643.6,3.55]
[1744703538593,0.8009,1644.2,1643.7,0.7432]
[1744703539605,0.8009,1644.2,1643.6,3.55]
[1744703543959,0.8191,1644.8,1643.9,0.7432]
[1744703544996,0.8191,1644.8,1643.9,4.7432]
[1744703545397,0.8191,1644.8,1643.9,0.7432]
[1744703545574,0.8191,1644.8,1643.8,0.7432]
[1744703545898,0.7519,1644.6,1643.5,0.7432]
[1744703546099,0.7519,1644.4,1643.7,0.7432]
[1744703547815,0.7519,1644.4,1643.8,0.06082473]
[1744703547981,0.7519,1644.4,1643.7,0.7432]
[1744703555382,0.7519,1644.4,1643.7,3.7432]
[1744703555586,50.425,1644.9,1643.7,3.7432]
[1744703555587,0.7839,1644.7,1643.9,3.7432]
[1744703560931,0.7839,1644.7,1644.0,0.7432]
[1744703562699,0.7839,1644.7,1643.8,3.7432]
[1744703564135,0.7839,1644.7,1643.8,0.7432]
[1744703568944,0.782,1644.6,1643.8,0.7432]
[1744703571046,0.31727467,1645.1,1643.9,0.55]
[1744703571248,5.18,1645.3,1644.1,0.7432]
[1744703571560,0.7993,1645.1,1644.1,0.7432]
[1744703574059,0.7993,1645.1,1644.2,0.80401129]
[1744703575063,0.7993,1645.1,1644.2,0.7432]
[1744703577638,0.55,1645.0,1644.2,0.7432]
[1744703577843,0.7961,1644.7,1644.2,0.7432]
[1744703580460,5.9739,1644.9,1644.2,0.7432]
[1744703586238,0.7934,1644.8,1644.2,0.7432]
[1744703587874,5.179,1644.7,1644.2,0.7432]
[1744703588857,0.8034,1645.0,1644.2,0.7432]
[1744703589175,5.179,1644.9,1644.2,0.7432]
[1744703589542,0.8034,1645.0,1644.2,0.7432]
[1744703589741,5.179,1644.9,1644.2,0.7432]
[1744703594683,0.8105,1644.8,1644.2,0.7432]
[1744703594868,5.271,1644.7,1644.2,0.7432]
[1744703602104,1.3819,1644.6,1643.9,0.7432]
[1744703602806,3.8319,1644.6,1643.9,0.7432]
[1744703604972,3.0,1644.6,1643.9,0.7432]
[1744703610681,0.781,1644.5,1643.9,0.7432]
[1744703610880,3.0,1644.6,1643.9,0.7432]
[1744703612122,5.271,1644.7,1643.9,0.7432]
[1744703612512,4.322,1644.6,1643.9,0.7432]
[1744703618035,3.772,1644.6,1643.9,0.7432]
[1744703618237,0.55,1644.5,1643.9,0.7432]
[1744703620241,5.272,1644.4,1643.9,0.7432]
[1744703620736,0.55,1644.5,1643.9,0.7432]
[1744703620909,5.272,1644.3,1643.9,0.7432]
[1744703631717,5.214,1644.2,1643.9,0.7432]
[1744703631916,5.214,1644.1,1643.9,0.7432]
[1744703645666,5.9915,1644.1,1643.4,0.7432]
[1744703646269,5.214,1644.1,1643.4,0.7432]
[1744703649482,5.214,1644.1,1643.5,0.06083783]
[1744703649681,5.214,1644.1,1643.6,0.7432]
[1744703652770,0.7708,1644.0,1643.6,0.7432]